[Event "Titled Tuesday Blitz June 28 Late 2022"]
[White "Ozates, Tuna"]
[Black "Bolourchifard, Farzad"]
[WhiteFideId "6354521"]
[BlackFideId "12510084"]
[WhiteElo "1887"]
[BlackElo "2317"]
[Result "1-0"]
[Round "10"]
[TimeControl "180+1"]
[Date "2022.06.28"]
[WhiteClock "0:00:06"]
[BlackClock "0:00:06"]

1. e4 {[%clk 0:03:00]}  e5 {[%clk 0:02:59]} 2. Nf3 {[%clk 0:02:59]}  Nc6 {[%clk 0:03:00]} 3. Bc4 {[%clk 0:02:58]}  Bc5 {[%clk 0:02:59]} 4. c3 {[%clk 0:02:58]}  Nf6 {[%clk 0:02:59]} 5. d3 {[%clk 0:02:59]}  a6 {[%clk 0:02:59]} 6. O-O {[%clk 0:02:59]}  d6 {[%clk 0:03:00]} 7. a4 {[%clk 0:03:00]}  O-O {[%clk 0:02:59]} 8. Nbd2 {[%clk 0:03:00]}  h6 {[%clk 0:02:56]} 9. h3 {[%clk 0:03:00]}  Re8 {[%clk 0:02:56]} 10. Re1 {[%clk 0:03:00]}  d5 {[%clk 0:02:55]} 11. exd5 {[%clk 0:03:00]}  Nxd5 {[%clk 0:02:55]} 12. Qb3 {[%clk 0:02:52]}  Na5 {[%clk 0:02:53]} 13. Qa2 {[%clk 0:02:52]}  Nxc4 {[%clk 0:02:53]} 14. Qxc4 {[%clk 0:02:51]}  Ba7 {[%clk 0:02:37]} 15. Rxe5 {[%clk 0:02:44]}  Rxe5 {[%clk 0:02:28]} 16. Nxe5 {[%clk 0:02:42]}  Be6 {[%clk 0:02:14]} 17. Qe4 {[%clk 0:02:21]}  Qd6 {[%clk 0:01:32]} 18. d4 {[%clk 0:02:10]}  Re8 {[%clk 0:01:31]} 19. Ndc4 {[%clk 0:02:09]}  Qd8 {[%clk 0:01:24]} 20. Qd3 {[%clk 0:01:47]}  c5 {[%clk 0:00:35]} 21. dxc5 {[%clk 0:01:36]}  Bxc5 {[%clk 0:00:32]} 22. Bd2 {[%clk 0:01:35]}  Qh4 {[%clk 0:00:24]} 23. Ne3 {[%clk 0:01:23]}  Nf4 {[%clk 0:00:21]} 24. Nf3 {[%clk 0:00:58]}  Nxd3 {[%clk 0:00:10]} 25. Nxh4 {[%clk 0:00:58]}  Nxb2 {[%clk 0:00:11]} 26. Rb1 {[%clk 0:00:54]}  Nxa4 {[%clk 0:00:11]} 27. Rxb7 {[%clk 0:00:54]}  Bxe3 {[%clk 0:00:11]} 28. fxe3 {[%clk 0:00:39]}  Rd8 {[%clk 0:00:11]} 29. Nf3 {[%clk 0:00:39]}  Bd5 {[%clk 0:00:10]} 30. Rb4 {[%clk 0:00:38]}  Bxf3 {[%clk 0:00:10]} 31. gxf3 {[%clk 0:00:14]}  Nc5 {[%clk 0:00:11]} 32. Rd4 {[%clk 0:00:14]}  Ra8 {[%clk 0:00:10]} 33. c4 {[%clk 0:00:14]}  a5 {[%clk 0:00:10]} 34. Rd5 {[%clk 0:00:14]}  Nb3 {[%clk 0:00:10]} 35. Bc3 {[%clk 0:00:15]}  a4 {[%clk 0:00:10]} 36. c5 {[%clk 0:00:14]}  a3 {[%clk 0:00:10]} 37. c6 {[%clk 0:00:15]}  a2 {[%clk 0:00:10]} 38. c7 {[%clk 0:00:15]}  a1=Q+ {[%clk 0:00:06]} 39. Bxa1 {[%clk 0:00:15]}  Rxa1+ {[%clk 0:00:07]} 40. Kg2 {[%clk 0:00:15]}  Ra2+ {[%clk 0:00:07]} 41. Kg3 {[%clk 0:00:15]}  Rc2 {[%clk 0:00:06]} 42. Rd8+ {[%clk 0:00:15]}  Kh7 {[%clk 0:00:06]} 43. c8=Q {[%clk 0:00:16]}  Rxc8 {[%clk 0:00:06]} 44. Rxc8 {[%clk 0:00:17]}  Nd2 {[%clk 0:00:06]} 45. e4 {[%clk 0:00:15]}  f6 {[%clk 0:00:07]} 46. Kf2 {[%clk 0:00:14]}  Nb3 {[%clk 0:00:06]} 47. Ke3 {[%clk 0:00:12]}  Kg6 {[%clk 0:00:05]} 48. Kd3 {[%clk 0:00:10]}  Na5 {[%clk 0:00:05]} 49. Rc7 {[%clk 0:00:10]}  Nb3 {[%clk 0:00:04]} 50. Kc3 {[%clk 0:00:09]}  Nc1 {[%clk 0:00:05]} 51. Kd2 {[%clk 0:00:08]}  Nb3+ {[%clk 0:00:06]} 52. Ke3 {[%clk 0:00:08]}  Na5 {[%clk 0:00:05]} 53. f4 {[%clk 0:00:07]}  Nb3 {[%clk 0:00:06]} 54. f5+ {[%clk 0:00:08]}  Kh7 {[%clk 0:00:05]} 55. h4 {[%clk 0:00:06]}  Na5 {[%clk 0:00:05]} 56. Kd4 {[%clk 0:00:06]}  Nb3+ {[%clk 0:00:06]} 57. Kd5 {[%clk 0:00:06]}  Nd2 {[%clk 0:00:06]} 58. e5 {[%clk 0:00:05]}  fxe5 {[%clk 0:00:05]} 59. Kxe5 {[%clk 0:00:06]}  Nf3+ {[%clk 0:00:05]} 60. Kf4 {[%clk 0:00:06]}  Nxh4 {[%clk 0:00:05]} 61. f6 {[%clk 0:00:06]}  Ng6+ {[%clk 0:00:04]} 62. Kf5 {[%clk 0:00:06]}  Nh4+ {[%clk 0:00:05]} 63. Kg4 {[%clk 0:00:06]}  Ng2 {[%clk 0:00:04]} 64. Rxg7+ {[%clk 0:00:05]}  Kh8 {[%clk 0:00:05]} 65. Kh5 {[%clk 0:00:05]}  Nf4+ {[%clk 0:00:06]} 66. Kxh6 {[%clk 0:00:05]}  Ng6 {[%clk 0:00:06]} 67. Ra7 {[%clk 0:00:04]}  Nf8 {[%clk 0:00:04]} 68. Ra8 {[%clk 0:00:04]}  Kg8 {[%clk 0:00:05]} 69. Kg5 {[%clk 0:00:04]}  Kf7 {[%clk 0:00:06]} 70. Ra7+ {[%clk 0:00:05]}  Kg8 {[%clk 0:00:07]} 71. Rg7+ {[%clk 0:00:06]}  Kh8 {[%clk 0:00:07]} 72. Kh6 {[%clk 0:00:06]}  Ng6 {[%clk 0:00:06]} 73. f7 {[%clk 0:00:06]}  Ne7 {[%clk 0:00:06]} 74. f8=Q+ {[%clk 0:00:05]}  Ng8+ {[%clk 0:00:06]} 75. Qxg8# {[%clk 0:00:06]} 1-0


[Site "https://www.chess.com"]

[Event "Titled Tuesday Blitz June 28 Late 2022"]
[White "Papp, Levente"]
[Black "Clarke, Brandon G I"]
[WhiteFideId "751243"]
[BlackFideId "400319"]
[WhiteElo "2308"]
[BlackElo "2414"]
[Result "1/2-1/2"]
[Round "10"]
[TimeControl "180+1"]
[Date "2022.06.28"]
[WhiteClock "0:00:11"]
[BlackClock "0:00:06"]

1. c4 {[%clk 0:03:00]}  e6 {[%clk 0:02:57]} 2. Nf3 {[%clk 0:02:59]}  f5 {[%clk 0:02:58]} 3. g3 {[%clk 0:02:57]}  Nf6 {[%clk 0:02:58]} 4. Bg2 {[%clk 0:02:58]}  Be7 {[%clk 0:02:59]} 5. O-O {[%clk 0:02:58]}  O-O {[%clk 0:03:00]} 6. d3 {[%clk 0:02:58]}  d6 {[%clk 0:03:01]} 7. Nc3 {[%clk 0:02:54]}  e5 {[%clk 0:03:01]} 8. b4 {[%clk 0:02:36]}  Qe8 {[%clk 0:03:01]} 9. Rb1 {[%clk 0:02:23]}  Qh5 {[%clk 0:03:00]} 10. c5 {[%clk 0:02:18]}  f4 {[%clk 0:02:48]} 11. gxf4 {[%clk 0:01:50]}  Bh3 {[%clk 0:02:47]} 12. Qb3+ {[%clk 0:01:26]}  Kh8 {[%clk 0:02:47]} 13. Bxh3 {[%clk 0:01:24]}  Qxh3 {[%clk 0:02:47]} 14. Ng5 {[%clk 0:01:25]}  Qh5 {[%clk 0:02:42]} 15. cxd6 {[%clk 0:01:05]}  cxd6 {[%clk 0:02:41]} 16. Qe6 {[%clk 0:01:04]}  Nc6 {[%clk 0:02:14]} 17. Qh3 {[%clk 0:00:57]}  exf4 {[%clk 0:01:29]} 18. Qxh5 {[%clk 0:00:40]}  Nxh5 {[%clk 0:01:29]} 19. Nge4 {[%clk 0:00:38]}  Rf5 {[%clk 0:01:16]} 20. Kh1 {[%clk 0:00:27]}  d5 {[%clk 0:00:48]} 21. Nc5 {[%clk 0:00:24]}  b6 {[%clk 0:00:49]} 22. b5 {[%clk 0:00:23]}  Nd4 {[%clk 0:00:45]} 23. Nb3 {[%clk 0:00:22]}  Ne6 {[%clk 0:00:41]} 24. Bd2 {[%clk 0:00:19]}  Nf6 {[%clk 0:00:34]} 25. e4 {[%clk 0:00:16]}  Rh5 {[%clk 0:00:32]} 26. f3 {[%clk 0:00:13]}  Rd8 {[%clk 0:00:31]} 27. Rbe1 {[%clk 0:00:09]}  dxe4 {[%clk 0:00:30]} 28. dxe4 {[%clk 0:00:09]}  Bd6 {[%clk 0:00:23]} 29. Rd1 {[%clk 0:00:08]}  Be5 {[%clk 0:00:24]} 30. Ne2 {[%clk 0:00:06]}  g5 {[%clk 0:00:19]} 31. Bb4 {[%clk 0:00:06]}  Re8 {[%clk 0:00:10]} 32. Rg1 {[%clk 0:00:05]}  Kg7 {[%clk 0:00:09]} 33. Bd6 {[%clk 0:00:05]}  Bxd6 {[%clk 0:00:09]} 34. Rxd6 {[%clk 0:00:06]}  Kf7 {[%clk 0:00:08]} 35. Ned4 {[%clk 0:00:06]}  Nxd4 {[%clk 0:00:08]} 36. Nxd4 {[%clk 0:00:07]}  h6 {[%clk 0:00:07]} 37. Nf5 {[%clk 0:00:07]}  Rc8 {[%clk 0:00:02]} 38. e5 {[%clk 0:00:07]}  Ne8 {[%clk 0:00:02]} 39. Rxh6 {[%clk 0:00:07]}  Rxh6 {[%clk 0:00:02]} 40. Nxh6+ {[%clk 0:00:08]}  Kg6 {[%clk 0:00:03]} 41. Ng4 {[%clk 0:00:08]}  Rc3 {[%clk 0:00:03]} 42. Nf2 {[%clk 0:00:05]}  Rxf3 {[%clk 0:00:03]} 43. Ne4 {[%clk 0:00:06]}  Kf5 {[%clk 0:00:02]} 44. Nxg5 {[%clk 0:00:06]}  Rf2 {[%clk 0:00:03]} 45. e6 {[%clk 0:00:06]}  Nf6 {[%clk 0:00:03]} 46. e7 {[%clk 0:00:06]}  Re2 {[%clk 0:00:03]} 47. Nf3 {[%clk 0:00:05]}  Rxe7 {[%clk 0:00:03]} 48. h4 {[%clk 0:00:06]}  Ng4 {[%clk 0:00:03]} 49. Nd4+ {[%clk 0:00:06]}  Ke4 {[%clk 0:00:03]} 50. Rxg4 {[%clk 0:00:06]}  Kxd4 {[%clk 0:00:04]} 51. Rxf4+ {[%clk 0:00:07]}  Kc5 {[%clk 0:00:04]} 52. Rf5+ {[%clk 0:00:07]}  Kb4 {[%clk 0:00:05]} 53. h5 {[%clk 0:00:07]}  Re1+ {[%clk 0:00:02]} 54. Kg2 {[%clk 0:00:07]}  Re2+ {[%clk 0:00:03]} 55. Rf2 {[%clk 0:00:07]}  Re5 {[%clk 0:00:03]} 56. Rf4+ {[%clk 0:00:07]}  Kxb5 {[%clk 0:00:03]} 57. Rh4 {[%clk 0:00:08]}  Re7 {[%clk 0:00:03]} 58. Kf3 {[%clk 0:00:07]}  Rh7 {[%clk 0:00:04]} 59. Kg4 {[%clk 0:00:08]}  Ka4 {[%clk 0:00:04]} 60. Kg5+ {[%clk 0:00:08]}  Ka3 {[%clk 0:00:04]} 61. Kg6 {[%clk 0:00:09]}  Rh8 {[%clk 0:00:04]} 62. h6 {[%clk 0:00:08]}  Kxa2 {[%clk 0:00:04]} 63. Kg7 {[%clk 0:00:09]}  Rc8 {[%clk 0:00:04]} 64. Ra4+ {[%clk 0:00:09]}  Kb3 {[%clk 0:00:04]} 65. Rxa7 {[%clk 0:00:10]}  b5 {[%clk 0:00:04]} 66. h7 {[%clk 0:00:10]}  b4 {[%clk 0:00:05]} 67. Rf7 {[%clk 0:00:09]}  Ka2 {[%clk 0:00:04]} 68. Ra7+ {[%clk 0:00:09]}  Kb2 {[%clk 0:00:04]} 69. h8=Q {[%clk 0:00:08]}  Rxh8 {[%clk 0:00:03]} 70. Kxh8 {[%clk 0:00:09]}  b3 {[%clk 0:00:04]} 71. Kg7 {[%clk 0:00:10]}  Kc2 {[%clk 0:00:05]} 72. Kf6 {[%clk 0:00:10]}  b2 {[%clk 0:00:06]} 73. Rb7 {[%clk 0:00:10]}  b1=Q {[%clk 0:00:06]} 74. Rxb1 {[%clk 0:00:11]}  Kxb1 {[%clk 0:00:06]} 1/2-1/2


[Site "https://www.chess.com"]

[Event "Titled Tuesday Blitz June 28 Late 2022"]
[White "Petersson, Kjell"]
[Black "Capp, Stephen"]
[WhiteFideId "1705148"]
[BlackFideId "2027089"]
[WhiteElo "2009"]
[BlackElo "2149"]
[Result "1-0"]
[Round "10"]
[TimeControl "180+1"]
[Date "2022.06.29"]
[WhiteClock "0:00:54"]
[BlackClock "0:00:04"]

1. d4 {[%clk 0:03:00]}  Nf6 {[%clk 0:02:58]} 2. Bf4 {[%clk 0:03:01]}  d5 {[%clk 0:02:56]} 3. e3 {[%clk 0:03:00]}  c5 {[%clk 0:02:54]} 4. c3 {[%clk 0:02:59]}  Nc6 {[%clk 0:02:54]} 5. Nd2 {[%clk 0:02:59]}  Bf5 {[%clk 0:02:53]} 6. Qb3 {[%clk 0:02:58]}  Qb6 {[%clk 0:02:50]} 7. dxc5 {[%clk 0:02:57]}  Qxb3 {[%clk 0:02:43]} 8. axb3 {[%clk 0:02:58]}  e6 {[%clk 0:02:42]} 9. b4 {[%clk 0:02:55]}  e5 {[%clk 0:02:41]} 10. Bg3 {[%clk 0:02:54]}  Nd7 {[%clk 0:02:37]} 11. Ngf3 {[%clk 0:02:50]}  f6 {[%clk 0:02:37]} 12. b5 {[%clk 0:02:37]}  Nd8 {[%clk 0:02:34]} 13. b4 {[%clk 0:02:37]}  g5 {[%clk 0:02:31]} 14. Be2 {[%clk 0:02:30]}  h5 {[%clk 0:02:31]} 15. h3 {[%clk 0:02:25]}  h4 {[%clk 0:02:24]} 16. Bh2 {[%clk 0:02:25]}  Ne6 {[%clk 0:02:22]} 17. O-O {[%clk 0:02:24]}  Be7 {[%clk 0:02:19]} 18. c6 {[%clk 0:02:14]}  bxc6 {[%clk 0:02:17]} 19. bxc6 {[%clk 0:02:14]}  Nb6 {[%clk 0:02:17]} 20. Ra6 {[%clk 0:02:08]}  Kf7 {[%clk 0:02:12]} 21. Rfa1 {[%clk 0:02:07]}  Nc8 {[%clk 0:01:53]} 22. Nb3 {[%clk 0:02:06]}  Nc7 {[%clk 0:01:52]} 23. R6a5 {[%clk 0:02:04]}  g4 {[%clk 0:01:38]} 24. hxg4 {[%clk 0:02:01]}  Bxg4 {[%clk 0:01:39]} 25. Bd1 {[%clk 0:01:47]}  h3 {[%clk 0:01:38]} 26. Bxe5 {[%clk 0:01:40]}  hxg2 {[%clk 0:01:24]} 27. Bxc7 {[%clk 0:01:29]}  Nd6 {[%clk 0:01:00]} 28. Rxa7 {[%clk 0:01:20]}  Rag8 {[%clk 0:00:46]} 29. Nh2 {[%clk 0:01:10]}  Bxd1 {[%clk 0:00:33]} 30. Rxd1 {[%clk 0:01:07]}  Nf5 {[%clk 0:00:25]} 31. Nd4 {[%clk 0:01:02]}  Nh4 {[%clk 0:00:19]} 32. Bd6 {[%clk 0:00:59]}  Re8 {[%clk 0:00:11]} 33. Rxe7+ {[%clk 0:00:57]}  Rxe7 {[%clk 0:00:12]} 34. Bxe7 {[%clk 0:00:57]}  Kxe7 {[%clk 0:00:10]} 35. b5 {[%clk 0:00:54]}  Kd6 {[%clk 0:00:04]} 36. b6 {[%clk 0:00:54]} 1-0


[Site "https://www.chess.com"]

[Event "Titled Tuesday Blitz June 28 Late 2022"]
[White "Petrovic, Aleksa"]
[Black "Kovacevic, Radmila"]
[WhiteFideId "967629"]
[BlackFideId "933171"]
[WhiteElo "2117"]
[BlackElo "2115"]
[Result "1-0"]
[Round "10"]
[TimeControl "180+1"]
[Date "2022.06.29"]
[WhiteClock "0:00:40"]
[BlackClock "0:00:05"]

1. d4 {[%clk 0:03:00]}  e5 {[%clk 0:02:58]} 2. dxe5 {[%clk 0:03:00]}  Nc6 {[%clk 0:02:58]} 3. Nf3 {[%clk 0:02:59]}  Qe7 {[%clk 0:02:58]} 4. Nc3 {[%clk 0:02:58]}  Nxe5 {[%clk 0:02:58]} 5. e4 {[%clk 0:02:57]}  c6 {[%clk 0:02:57]} 6. Bf4 {[%clk 0:02:55]}  Ng6 {[%clk 0:02:50]} 7. Bg3 {[%clk 0:02:49]}  d5 {[%clk 0:02:49]} 8. Qe2 {[%clk 0:02:37]}  Nf6 {[%clk 0:02:40]} 9. exd5 {[%clk 0:02:35]}  Nxd5 {[%clk 0:02:35]} 10. Nxd5 {[%clk 0:02:29]}  cxd5 {[%clk 0:02:31]} 11. Qxe7+ {[%clk 0:02:28]}  Bxe7 {[%clk 0:02:25]} 12. Bb5+ {[%clk 0:02:27]}  Kf8 {[%clk 0:02:18]} 13. O-O-O {[%clk 0:02:25]}  Be6 {[%clk 0:02:17]} 14. Nd4 {[%clk 0:02:22]}  a6 {[%clk 0:02:01]} 15. Nxe6+ {[%clk 0:02:06]}  fxe6 {[%clk 0:02:02]} 16. Bd7 {[%clk 0:02:02]}  Bg5+ {[%clk 0:02:02]} 17. Kb1 {[%clk 0:01:44]}  Ke7 {[%clk 0:02:01]} 18. Ba4 {[%clk 0:01:38]}  b5 {[%clk 0:02:00]} 19. Bb3 {[%clk 0:01:37]}  Kf7 {[%clk 0:01:42]} 20. f4 {[%clk 0:01:31]}  Bxf4 {[%clk 0:01:17]} 21. Bxf4 {[%clk 0:01:30]}  Nxf4 {[%clk 0:01:15]} 22. Rhf1 {[%clk 0:01:30]}  g5 {[%clk 0:01:09]} 23. g3 {[%clk 0:01:29]}  Kf6 {[%clk 0:01:05]} 24. gxf4 {[%clk 0:01:28]}  gxf4 {[%clk 0:00:56]} 25. Rxf4+ {[%clk 0:01:29]}  Ke7 {[%clk 0:00:55]} 26. a4 {[%clk 0:01:26]}  Rhf8 {[%clk 0:00:51]} 27. Rxf8 {[%clk 0:01:23]}  Rxf8 {[%clk 0:00:51]} 28. axb5 {[%clk 0:01:23]}  axb5 {[%clk 0:00:52]} 29. Rd4 {[%clk 0:01:22]}  Kd6 {[%clk 0:00:46]} 30. Rh4 {[%clk 0:01:20]}  Rf7 {[%clk 0:00:45]} 31. c3 {[%clk 0:01:20]}  Kc5 {[%clk 0:00:42]} 32. Bc2 {[%clk 0:01:19]}  Rf1+ {[%clk 0:00:39]} 33. Ka2 {[%clk 0:01:19]}  e5 {[%clk 0:00:34]} 34. Rxh7 {[%clk 0:01:08]}  Rf2 {[%clk 0:00:30]} 35. Bg6 {[%clk 0:00:59]}  e4 {[%clk 0:00:25]} 36. h4 {[%clk 0:00:54]}  Rd2 {[%clk 0:00:19]} 37. h5 {[%clk 0:00:52]}  b4 {[%clk 0:00:13]} 38. cxb4+ {[%clk 0:00:49]}  Kxb4 {[%clk 0:00:13]} 39. h6 {[%clk 0:00:49]}  Rh2 {[%clk 0:00:10]} 40. Rh8 {[%clk 0:00:45]}  Kc5 {[%clk 0:00:08]} 41. Bxe4 {[%clk 0:00:42]}  dxe4 {[%clk 0:00:08]} 42. h7 {[%clk 0:00:42]}  e3 {[%clk 0:00:06]} 43. Rc8+ {[%clk 0:00:41]}  Kd4 {[%clk 0:00:04]} 44. h8=R {[%clk 0:00:40]}  Rxh8 {[%clk 0:00:04]} 45. Rxh8 {[%clk 0:00:39]}  e2 {[%clk 0:00:04]} 46. Re8 {[%clk 0:00:39]}  Kd3 {[%clk 0:00:04]} 47. b4 {[%clk 0:00:39]}  Kd2 {[%clk 0:00:04]} 48. b5 {[%clk 0:00:40]}  e1=Q {[%clk 0:00:05]} 49. Rxe1 {[%clk 0:00:40]}  Kxe1 {[%clk 0:00:05]} 50. b6 {[%clk 0:00:40]} 1-0


[Site "https://www.chess.com"]

[Event "Titled Tuesday Blitz June 28 Late 2022"]
[White "Premnath, R."]
[Black "Sibilio, Mario"]
[WhiteFideId "5021928"]
[BlackFideId "800422"]
[WhiteElo "2600"]
[BlackElo "2296"]
[Result "1-0"]
[Round "10"]
[TimeControl "180+1"]
[Date "2022.06.29"]
[WhiteClock "0:00:41"]
[BlackClock "0:00:04"]

1. d4 {[%clk 0:03:00]}  Nf6 {[%clk 0:02:56]} 2. c4 {[%clk 0:03:01]}  e6 {[%clk 0:02:53]} 3. Nf3 {[%clk 0:03:02]}  c5 {[%clk 0:02:51]} 4. d5 {[%clk 0:03:01]}  exd5 {[%clk 0:02:44]} 5. cxd5 {[%clk 0:03:02]}  d6 {[%clk 0:02:43]} 6. Nc3 {[%clk 0:03:02]}  g6 {[%clk 0:02:42]} 7. e4 {[%clk 0:03:02]}  Bg7 {[%clk 0:02:41]} 8. Bb5+ {[%clk 0:03:03]}  Nfd7 {[%clk 0:02:39]} 9. a4 {[%clk 0:03:04]}  a6 {[%clk 0:02:37]} 10. Bd3 {[%clk 0:03:03]}  O-O {[%clk 0:02:35]} 11. O-O {[%clk 0:03:02]}  Re8 {[%clk 0:02:18]} 12. Qc2 {[%clk 0:02:51]}  Nf6 {[%clk 0:02:10]} 13. h3 {[%clk 0:02:38]}  Nbd7 {[%clk 0:02:07]} 14. Bg5 {[%clk 0:02:25]}  h6 {[%clk 0:01:50]} 15. Bf4 {[%clk 0:02:19]}  Qe7 {[%clk 0:01:49]} 16. a5 {[%clk 0:02:07]}  g5 {[%clk 0:01:31]} 17. Bd2 {[%clk 0:01:50]}  Nh5 {[%clk 0:01:26]} 18. Rfe1 {[%clk 0:01:42]}  Ne5 {[%clk 0:01:24]} 19. Be2 {[%clk 0:01:40]}  Nf4 {[%clk 0:01:20]} 20. Nh2 {[%clk 0:01:27]}  Nxe2+ {[%clk 0:01:06]} 21. Nxe2 {[%clk 0:01:18]}  Bd7 {[%clk 0:00:51]} 22. Ng3 {[%clk 0:01:15]}  Qf6 {[%clk 0:00:36]} 23. Nh5 {[%clk 0:01:06]}  Qg6 {[%clk 0:00:35]} 24. Nxg7 {[%clk 0:01:07]}  Kxg7 {[%clk 0:00:34]} 25. Bc3 {[%clk 0:01:05]}  Kh7 {[%clk 0:00:31]} 26. Re3 {[%clk 0:01:01]}  f5 {[%clk 0:00:24]} 27. exf5 {[%clk 0:00:57]}  Bxf5 {[%clk 0:00:24]} 28. Qb3 {[%clk 0:00:56]}  Rab8 {[%clk 0:00:12]} 29. Rae1 {[%clk 0:00:43]}  c4 {[%clk 0:00:08]} 30. Qb6 {[%clk 0:00:43]}  Nd3 {[%clk 0:00:04]} 31. Re7+ {[%clk 0:00:41]} 1-0


[Site "https://www.chess.com"]

[Event "Titled Tuesday Blitz June 28 Late 2022"]
[White "Romanchuk, Viktor"]
[Black "D`Arruda, Ricardo D."]
[WhiteFideId "14109271"]
[BlackFideId "100692"]
[WhiteElo "2242"]
[BlackElo "2424"]
[Result "0-1"]
[Round "10"]
[TimeControl "180+1"]
[Date "2022.06.29"]
[WhiteClock "0:01:44"]
[BlackClock "0:02:06"]

1. d4 {[%clk 0:03:00]}  Nf6 {[%clk 0:02:57]} 2. c4 {[%clk 0:03:01]}  e5 {[%clk 0:02:54]} 3. dxe5 {[%clk 0:03:00]}  Ne4 {[%clk 0:02:54]} 4. Nd2 {[%clk 0:02:55]}  Nc5 {[%clk 0:02:53]} 5. Ngf3 {[%clk 0:02:53]}  Nc6 {[%clk 0:02:53]} 6. a3 {[%clk 0:02:52]}  Qe7 {[%clk 0:02:52]} 7. b4 {[%clk 0:02:50]}  Nxe5 {[%clk 0:02:53]} 8. e3 {[%clk 0:02:25]}  Ncd3+ {[%clk 0:02:51]} 9. Bxd3 {[%clk 0:02:24]}  Nxd3+ {[%clk 0:02:52]} 10. Ke2 {[%clk 0:02:24]}  Nxc1+ {[%clk 0:02:52]} 11. Rxc1 {[%clk 0:02:25]}  g6 {[%clk 0:02:52]} 12. c5 {[%clk 0:02:24]}  Bg7 {[%clk 0:02:51]} 13. Nc4 {[%clk 0:02:24]}  O-O {[%clk 0:02:45]} 14. h4 {[%clk 0:02:21]}  b6 {[%clk 0:02:43]} 15. h5 {[%clk 0:02:10]}  bxc5 {[%clk 0:02:41]} 16. bxc5 {[%clk 0:02:10]}  Qxc5 {[%clk 0:02:39]} 17. hxg6 {[%clk 0:02:10]}  hxg6 {[%clk 0:02:36]} 18. Rh4 {[%clk 0:02:08]}  Ba6 {[%clk 0:02:29]} 19. Ke1 {[%clk 0:02:08]}  d5 {[%clk 0:02:10]} 20. Ncd2 {[%clk 0:02:04]}  Qxa3 {[%clk 0:02:09]} 21. Ra4 {[%clk 0:01:53]}  Qd6 {[%clk 0:02:09]} 22. Qc2 {[%clk 0:01:44]}  Bb5 {[%clk 0:02:06]} 0-1


[Site "https://www.chess.com"]

[Event "Titled Tuesday Blitz June 28 Late 2022"]
[White "Romero Ruscalleda, Josep"]
[Black "Janturin, Artur"]
[WhiteFideId "2231859"]
[BlackFideId "4130022"]
[WhiteElo "2263"]
[BlackElo "2380"]
[Result "1-0"]
[Round "10"]
[TimeControl "180+1"]
[Date "2022.06.29"]
[WhiteClock "0:00:11"]
[BlackClock "0:00:08"]

1. e4 {[%clk 0:03:00]}  a6 {[%clk 0:02:59]} 2. d4 {[%clk 0:03:00]}  b5 {[%clk 0:03:00]} 3. a4 {[%clk 0:02:59]}  Bb7 {[%clk 0:02:59]} 4. Bd3 {[%clk 0:02:58]}  Nf6 {[%clk 0:02:59]} 5. Qe2 {[%clk 0:02:58]}  e6 {[%clk 0:02:58]} 6. Nf3 {[%clk 0:02:53]}  c5 {[%clk 0:02:57]} 7. dxc5 {[%clk 0:02:49]}  Bxc5 {[%clk 0:02:58]} 8. e5 {[%clk 0:02:41]}  Nd5 {[%clk 0:02:37]} 9. O-O {[%clk 0:02:31]}  b4 {[%clk 0:02:34]} 10. Bg5 {[%clk 0:02:25]}  Qc7 {[%clk 0:02:28]} 11. c4 {[%clk 0:02:01]}  bxc3 {[%clk 0:02:26]} 12. Nxc3 {[%clk 0:02:02]}  Nxc3 {[%clk 0:02:21]} 13. bxc3 {[%clk 0:02:02]}  Nc6 {[%clk 0:02:12]} 14. Rfe1 {[%clk 0:02:00]}  Ne7 {[%clk 0:02:04]} 15. Nd4 {[%clk 0:01:54]}  Nd5 {[%clk 0:01:58]} 16. Bd2 {[%clk 0:01:48]}  O-O {[%clk 0:01:27]} 17. Qg4 {[%clk 0:01:41]}  f5 {[%clk 0:00:57]} 18. exf6 {[%clk 0:01:37]}  Nxf6 {[%clk 0:00:57]} 19. Qh4 {[%clk 0:01:36]}  Rf7 {[%clk 0:00:55]} 20. Bf4 {[%clk 0:01:32]}  Bd6 {[%clk 0:00:50]} 21. Bg5 {[%clk 0:01:24]}  Qxc3 {[%clk 0:00:45]} 22. Rad1 {[%clk 0:01:23]}  Bc5 {[%clk 0:00:37]} 23. Ne2 {[%clk 0:01:08]}  Qb4 {[%clk 0:00:36]} 24. Nf4 {[%clk 0:01:04]}  Bf8 {[%clk 0:00:27]} 25. Bxf6 {[%clk 0:00:50]}  gxf6 {[%clk 0:00:28]} 26. Re3 {[%clk 0:00:40]}  Kh8 {[%clk 0:00:14]} 27. Rg3 {[%clk 0:00:32]}  Rg7 {[%clk 0:00:08]} 28. Rxg7 {[%clk 0:00:11]}  Bxg7 {[%clk 0:00:08]} 29. Qxh7# {[%clk 0:00:11]} 1-0


[Site "https://www.chess.com"]